Cogmind - Beta 15 @@@ ROGUE MODE // 2025.07.15 @ 01:04:44 Player: LameThyst Result: Destroyed by H-61 Shepherd with Heavy Assault Cannon Performance ------------- Evolutions (2) 1000 Regions Visited (3) 600 Robots Destroyed (42) 210 Value Destroyed (1080) 1080 Prototype IDs (3) 60 Alien Tech Used (0) 0 Bonus (0) 0 TOTAL SCORE: 2950 Bonus ------- None Cogmind --------- Core Integrity 0/550 Matter 252/300 Energy 100/100 System Corruption 6% Temperature Cool (0) Movement Core (700) Ox13 Location -8/Materials Parts ------- > --- POWER (1) -------- (None) > --- PROPULSION (4) --- (None) > --- UTILITY (4) ------ Large Storage Unit Large Storage Unit Sensor Array > --- WEAPON (2) ------- (None) > --- INVENTORY (15) --- Light Nuclear Core Improved Heat Sink Subdweller Optics Signal Interpreter Light Armor Plating Reflective Plating System Shield Riot Gun Heavy Laser Subdweller Beam Cannon Heavy Assault Rifle Autogun Shotgun Plasma Cutter Mace Peak State ------------ > --- POWER ------------ Subdweller Power Source > --- PROPULSION ------- Carbon-fiber Leg Carbon-fiber Leg Compact Wheel Subdweller Monowheel > --- UTILITY ---------- Large Storage Unit Structural Scanner Sensor Array Seismic Detector > --- WEAPON ----------- Shotgun Subdweller Machine Gun > --- INVENTORY -------- Ion Engine Improved Heat Sink Subdweller Optics Signal Interpreter ECM Suite Light Armor Plating Reflective Plating Riot Gun Heavy Laser Subdweller Beam Cannon Heavy Assault Rifle Autogun Shock Bomb Launcher Plasma Cutter Mace [Rating: 22] Favorites ----------- Power Ion Engine Engine Ion Engine Power Core Light Nuclear Core Propulsion Light Treads Treads Light Treads Leg Carbon-fiber Leg Wheel Subdweller Monowheel Utility Seismic Detector Device Seismic Detector Storage Large Storage Unit Protection Light Armor Plating Weapon Autogun Energy Gun Particle Gun Energy Cannon Subdweller Beam Cannon Ballistic Gun Autogun Launcher Rocket Launcher Special Weapon Plasma Cutter Impact Weapon Mace Build | -11 -10 -10 -8 ------- Run | Yrd Mat Sub Mat Slots Evolved 4 | . . . 4 Power . | . . . . Propulsion 2 | . . . 2 Utility 2 | . . . 2 Weapon . | . . . . Parts Attached 45 | 7 16 6 16 Power 10 | 1 4 2 3 Engine 9 | 1 4 2 2 Core 1 | . . . 1 Reactor . | . . . . Propulsion 8 | 2 . 2 4 Treads 3 | 2 . . 1 Leg 2 | . . . 2 Wheel 3 | . . 2 1 Hover . | . . . . Flight . | . . . . Utility 10 | 2 3 . 5 Device 5 | 1 1 . 3 Storage 4 | 1 2 . 1 Processor . | . . . . Hackware . | . . . . Protection 1 | . . . 1 Artifact . | . . . . Weapon 17 | 2 9 2 4 Energy Gun 1 | . 1 . . Energy Cannon 1 | . . 1 . Ballistic Gun 10 | 2 6 1 1 Ballistic Cannon . | . . . . Launcher 2 | . . . 2 Special Weapon 2 | . 2 . . Impact Weapon 1 | . . . 1 Slashing Weapon . | . . . . Piercing Weapon . | . . . . Special Melee Weapon . | . . . . Unidentified Prototypes 1 | . . . 1 Parts Lost 13 | . . . 13 Power 2 | . . . 2 Propulsion 5 | . . . 5 Utility 2 | . . . 2 Weapon 4 | . . . 4 Highest Loss Streak 6 | . . . 6 To Critical Strikes . | . . . . Average Backups 12 | 2 12 15 14 Power . | . 1 1 . Propulsion . | 1 1 1 . Utility 5 | . 5 7 5 Weapon 4 | . 3 5 6 Tool/Special . | . . . . Unused Backups 19 | . 6 2 11 Power . | . . . . Propulsion 1 | . 1 . . Utility 12 | . 4 1 7 Weapon 6 | . 1 1 4 Tool/Special . | . . . . Average Slot Usage (%) 96 | . 99 99 84 Engine 12 | . 14 14 7 Treads 21 | . 28 17 3 Leg 1 | . . . 7 Wheel 4 | . . 9 14 Device 15 | . 13 14 21 Storage 13 | . 14 14 12 Energy Cannon 1 | . . 6 1 Ballistic Gun 22 | . 27 21 6 Launcher 1 | . . . 6 Peak Build Rating 22 | 7 11 14 22 Average Rating 12 | 5 10 12 19 On Entrance 8 | . 7 11 14 Naked Turns . | . . . . Heaviest Build 61 | 14 32 38 61 Greatest Support 56 | 40 40 40 56 Greatest Overweight (x) 20 | . . 1 20 Average Overweight (x) . | . . . . Largest Inventory Capacity 15 | 8 15 15 15 Average Capacity 13 | 7 13 15 15 Most Carried 15 | 6 15 15 15 Average Carried 12 | 2 12 14 14 Final Capacity 15 | 8 15 15 15 Final Carried 15 | 6 15 15 15 Class Distribution -------------------- 88% | Mutant 11% | Scavenger-Mutant Dominant Class ---------------- Mutant | -10/Materials Mutant | -10/Subcaves Scavenger-Mutant | -8/Materials Resources | -11 -10 -10 -8 ----------- Run | Yrd Mat Sub Mat Matter Collected 1253 | 310 558 112 273 Remotely . | . . . . Salvage Created 1494 | 124 749 173 448 Parts 90 | 9 50 12 19 Haulers Intercepted 3 | . 2 . 1 Recyclers Shooed . | . . . . Parts Field Recycled . | . . . . Retrieved Matter . | . . . . Parts Self-Destructed . | . . . . Prevented . | . . . . Kills | -11 -10 -10 -8 ------- Run | Yrd Mat Sub Mat Combat Hostiles Destroyed 27 | . 15 4 8 Guns 18 | . 15 1 2 Cannons 3 | . . 2 1 AOE 3 | . . . 3 Classes Destroyed 12 | 3 6 1 2 Worker 3 | 1 1 . 1 Builder 1 | . 1 . . Tunneler 1 | 1 . . . Hauler 3 | . 2 . 1 Recycler 2 | 1 1 . . Operator 1 | . 1 . . Watcher 4 | . 3 . 1 Swarmer 6 | . 6 . . Grunt 14 | . 9 . 5 Sentry 2 | . . . 2 Hunter 1 | . . . 1 Subdweller 4 | . . 4 . Best Kill Streak 5 | 3 5 2 3 Combat Bots Only 4 | . 4 2 2 Max Kills in Single Turn 2 | 1 2 1 2 Gunslinging 1 | . 1 . . Exploded 2 | . . . 2 Melee . | . . . . Uniques/NPCs Destroyed . | . . . . Combat | -11 -10 -10 -8 -------- Run | Yrd Mat Sub Mat Hostile Shots Fired 180 | . 56 6 118 Missed 56 | . 19 1 36 Hits 124 | . 37 5 82 Projectile 124 | . 37 5 82 Critical Strikes 5 | . . 1 4 Damage Taken 2251 | . 417 104 1730 Core 624 | . 67 . 557 Absorbed by Shields . | . . . . Regen/Repaired (Parts) 12 | . 12 . . Core Remaining (%) 86 | 100 . 73 . Volleys Fired 102 | 10 56 9 27 Largest 2 | 2 2 2 2 Hottest 110 | 40 100 103 110 Shots Fired 178 | 20 104 17 37 Gun 152 | 20 96 8 28 Cannon 9 | . . 8 1 Launcher 8 | . . . 8 Special 9 | . 8 1 . Kinetic 152 | 20 96 8 28 Thermal 18 | . 8 9 1 Explosive 4 | . . . 4 Electromagnetic 4 | . . . 4 Robot Hit Streak 9 | 6 9 7 8 Robot Miss Streak 5 | 3 3 1 5 Penetration Max . | . . . . Secondary Targets 3 | . 2 . 1 Max Gunslinging Chain 1 | . 1 . 1 Shots Hit Robots 112 | 10 65 10 27 Core Hits 58 | 5 32 5 16 Critical Kills 3 | . 2 1 . Critical Parts Destroyed 1 | . . . 1 Critical Strikes 4 | . 2 1 1 Meltdown 1 | . . 1 . Destroy 2 | . 2 . . Smash 1 | . . . 1 Melee Attacks 10 | . . . 10 Impact 10 | . . . 10 Slashing . | . . . . Piercing . | . . . . Sneak Attacks . | . . . . Combat Hostiles . | . . . . Follow-up Attacks . | . . . . Damage Inflicted 2210 | 119 937 227 927 Guns 1380 | 119 937 65 259 Cannons 188 | . . 162 26 Explosions 439 | . . . 439 Melee 203 | . . . 203 Ramming . | . . . . Kinetic 1380 | 119 937 65 259 Thermal 188 | . . 162 26 Explosive 242 | . . . 242 Electromagnetic 197 | . . . 197 Impact 203 | . . . 203 Slashing . | . . . . Piercing . | . . . . Highest Corruption 6 | . . . 6 Average Corruption 4 | . . . 4 Corruption Purged . | . . . . Corruption Blocked . | . . . . Effects 10 | . . . 10 Message Errors 1 | . . . 1 Matter Fused 4 | . . . 4 Heat Flow Errors 2 | . . . 2 Energy Discharges 1 | . . . 1 Data Loss (major) 2 | . . . 2 Overload Shots . | . . . . Overflow Damage 51 | . . . 51 Projectiles . | . . . . Explosions 8 | . . . 8 Melee 43 | . . . 43 Knockbacks 1 | . . . 1 Impact 1 | . . . 1 Kinetic . | . . . . Secondary . | . . . . Self-Inflicted Damage 58 | . . . 58 Shots 2 | . . . 2 Rammed . | . . . . Targets Rammed . | . . . . Kicked . | . . . . Crushed . | . . . . Highest Temperature 193 | . 64 50 193 Average Temperature 22 | . 14 20 56 Received Heat Transfer 498 | . 144 30 324 Siege Activations . | . . . . Martial Activations . | . . . . Shielding Activations . | . . . . Robots Disrupted . | . . . . Combat Hostiles . | . . . . Robots Corrupted 3 | . . . 3 Combat Hostiles 2 | . . . 2 Parts Fried 4 | . . . 4 Impact Corruptions 2 | . . . 2 Robots Melted 1 | . . 1 . Combat Hostiles 1 | . . 1 . Parts Melted 4 | . . 4 . Heat Transferred 259 | . . 222 37 Parts Sabotaged . | . . . . Parts Stolen . | . . . . Parts Stripped . | . . . . Power Chain Reactions . | . . . . Alert | -11 -10 -10 -8 ------- Run | Yrd Mat Sub Mat Maximum Alert Level . | . . . . Low Security (%) 100 | 100 100 . 100 Level 1 . | . . . . Level 2 . | . . . . Level 3 . | . . . . Level 4 . | . . . . Level 5 . | . . . . High Security . | . . . . Max Security . | . . . . Peak Influence 161 | 10 161 . 101 Initial . | . . . . Average 27 | 1 27 . 34 Influence Increases 794 | 15 477 . 302 Destroy 0b10 Robot/C 460 | . 300 . 160 Destroy 0b10 Robot/NC 75 | 15 45 . 15 Destroy Leader 134 | . 80 . 54 Successful Hack 27 | . 22 . 5 Disable Machine 30 | . 15 . 15 Destroy Structure 38 | . . . 38 Lose Combat Pursuer 30 | . 15 . 15 Influence Decreases 794 | 15 477 . 302 Time Decay 549 | 15 333 . 201 Lost Part 101 | . . . 101 Purge Threat 144 | . 144 . . Squads Dispatched 4 | . 3 . 1 Investigation 2 | . 2 . . Extermination . | . . . . Reinforcement 2 | . 1 . 1 Assault . | . . . . Garrison . | . . . . Intercept . | . . . . Searches Triggered . | . . . . Construction Impeded . | . . . . Haulers Reinforced . | . . . . Active Scanning Responses . | . . . . Cargo Convoy Interrupts . | . . . . Stealth | -11 -10 -10 -8 --------- Run | Yrd Mat Sub Mat Distress Signals 1 | . 1 . . Communications Jammed . | . . . . Distress Signals . | . . . . Times Spotted 42 | . 20 4 18 Peak Tracking Total 5 | . 4 2 5 Tactical Retreats 2 | . 1 . 1 Traps | -11 -10 -10 -8 ------- Run | Yrd Mat Sub Mat Traps Triggered 5 | . 2 . 3 Indirectly . | . . . . Trap Hack Attempts . | . . . . Triggered . | . . . . Disarmed . | . . . . Reprogrammed . | . . . . Reused . | . . . . Traps Extracted . | . . . . Installed . | . . . . Triggered . | . . . . Machines | -11 -10 -10 -8 ---------- Run | Yrd Mat Sub Mat Machines Disabled 2 | . 1 . 1 Max in Single Turn 1 | . 1 . 1 Machines Repaired . | . . . . Machines Dismantled . | . . . . Machines Sabotaged . | . . . . Overloaded Fab Kills . | . . . . Hacking | -11 -10 -10 -8 --------- Run | Yrd Mat Sub Mat Machines Accessed 10 | . 9 . 1 Terminals 8 | . 7 . 1 Fabricators . | . . . . Repair Stations 1 | . 1 . . Recycling Units 1 | . 1 . . Scanalyzers . | . . . . Garrison Access . | . . . . Total Hacks 29 | . 25 . 4 Successful 17 | . 14 . 3 Failed 12 | . 11 . 1 Catastrophic 4 | . 3 . 1 Database Lockouts . | . . . . Manual 24 | . 21 . 3 Terminals 23 | . 19 . 4 Fabricators . | . . . . Repair Stations 3 | . 3 . . Recycling Units 3 | . 3 . . Scanalyzers . | . . . . Garrison Access . | . . . . Terminal Hacks 2 | . 1 . 1 Prototype ID Bank 1 | . . . 1 Unreport Threat 1 | . 1 . . Fabricator Hacks . | . . . . Repair Station Hacks 3 | . 3 . . Scan Component 2 | . 2 . . Repair 1 | . 1 . . Recycling Unit Hacks . | . . . . Scanalyzer . | . . . . Garrison Access Hacks . | . . . . Unauthorized Hacks 12 | . 10 . 2 Terminals 11 | . 9 . 2 Botnet 5 | . 4 . 1 Skim 6 | . 5 . 1 Fabricators . | . . . . Repair Stations . | . . . . Recycling Units 1 | . 1 . . Recyclers 1 | . 1 . . Scanalyzers . | . . . . Garrison Access . | . . . . Data Cores Recovered 1 | . 1 . . Used 1 | . 1 . . Hacking Detections 10 | . 9 . 1 Full Trace Events 2 | . 2 . . Feedback Events . | . . . . Feedback Blocked . | . . . . Robot Schematics Acquired . | . . . . Robots Built . | . . . . Authchips . | . . . . Time . | . . . . Total Robot Build Rating . | . . . . Part Schematics Acquired . | . . . . Parts Built . | . . . . Authchips . | . . . . Time . | . . . . Total Part Build Rating . | . . . . Parts Repaired 1 | . 1 . . Time 26 | . 26 . . Parts Recycled . | . . . . Recycled Matter . | . . . . Retrieved Matter . | . . . . Retrieved Components . | . . . . Parts Scanalyzed . | . . . . Part Schematics Acquired . | . . . . Parts Damaged . | . . . . Bothacking | -11 -10 -10 -8 ------------ Run | Yrd Mat Sub Mat Used RIF Installer . | . . . . Robots Hacked . | . . . . Non-combat . | . . . . Combat . | . . . . Robot Hacks Applied . | . . . . Relay Couplers Released . | . . . . Fabnet Peak Effective % . | . . . . Robots Rewired . | . . . . Allies Hacked . | . . . . Hacks Repelled . | . . . . Allies | -11 -10 -10 -8 -------- Run | Yrd Mat Sub Mat Total Allies . | . . . . Largest Group . | . . . . Highest-Rated Group . | . . . . Highest-Rated Ally . | . . . . Total Orders . | . . . . Ally Attacks . | . . . . Total Damage . | . . . . Kills . | . . . . Allies Corrupted . | . . . . Allies Melted . | . . . . Intel | -11 -10 -10 -8 ------- Run | Yrd Mat Sub Mat Active Infowar (turns) 3112 | 30 2061 353 668 Sensors 651 | . . . 651 Structural 352 | . . . 352 Seismic 3075 | 30 2061 353 631 Robot Analysis Total . | . . . . Derelict Logs Recovered . | . . . . Drone Launches . | . . . . Drone Recoveries . | . . . . Exploration | -11 -10 -10 -8 ------------- Run | Yrd Mat Sub Mat Turns Passed 3272 | 164 2087 353 668 Spaces Moved 1601 | 77 998 222 304 Core 8 | 2 . . 6 Treads 1270 | 75 998 125 72 Legs 7 | . . . 7 Wheels 316 | . . 97 219 Hover . | . . . . Flight . | . . . . Fastest Speed 50 | 50 160 110 105 Average Speed 157 | 157 160 138 164 Slowest Speed 1050 | 160 160 160 1050 Overloaded Moves . | . . . . Propulsion Burnouts . | . . . . Robots Hopped . | . . . . Potential Cave-ins . | . . . . Cave-ins Triggered . | . . . . Exploration Rate (%) 39 | 4 99 23 33 Regions Visited 3 Branch Regions 1 Pre-discovered Areas 1 | . 1 . . Known Exits Taken 1 | . . 1 . Unknown Exits Taken 2 | 1 1 . . Scrap Searched . | . . . . Spaces Dug 2 | . . . 2 Terrain Destroyed 64 | . . . 64 Melee 2 | . . . 2 Projectile 5 | . . . 5 AOE 57 | . . . 57 Terrain Rammed . | . . . . Walls Destroyed . | . . . . Machines Disabled . | . . . . Actions | -11 -10 -10 -8 --------- Run | Yrd Mat Sub Mat Total 2169 | 99 1397 252 421 Wait 322 | . 288 3 31 Move 1598 | 76 997 221 304 Hop . | . . . . Pick Up 38 | 6 17 3 12 Fast Attach 19 | 7 1 3 8 Attach 7 | . . . 7 Detach 3 | . . . 3 Swap 32 | . 20 5 7 Drop 38 | . 18 8 12 Fire 102 | 10 56 9 27 Melee 10 | . . . 10 Ram . | . . . . Kick . | . . . . Crush . | . . . . Escape Stasis . | . . . . Rewire . | . . . . Trap . | . . . . Miscellaneous . | . . . . Route ------- -11/Scrapyard -10/Materials (discovered 5 exits: *Mat x3 / [*Min] / [*Sub]) -10/Subcaves (discovered 2 exits: *Mat / Rec) -8/Materials History --------- Turn | Location | Event 30 | -11/Scrapyard | Discovered new exit (range 16) 165 | -11/Scrapyard | Entered Materials 296 | -10/Materials | Discovered new exit (range 11) 301 | -10/Materials | Build established: Mutant 554 | -10/Materials | Discovered new exit (range 14) 695 | -10/Materials | Repaired Seismic Detector 1735 | -10/Materials | Discovered new exit (range 16) 1785 | -10/Materials | Learned location of 2 exits from Subcaves 1835 | -10/Materials | Discovered new exit (range 7) 1854 | -10/Materials | Learned location of Storage (-9) 1874 | -10/Materials | Learned location of 1 exit from Storage 1885 | -10/Materials | Identified exit to Materials 1886 | -10/Materials | Loaded intel: 8 trap records 1887 | -10/Materials | Learned location of 2 exits from Mines 1890 | -10/Materials | Learned location of 1 exit from Storage 1905 | -10/Materials | Loaded intel: 1 repair station location 2252 | -10/Materials | Entered Subcaves 2253 | -10/Subcaves | Identified exit to Materials 2253 | -10/Subcaves | Identified exit to Recycling 2339 | -10/Subcaves | A swath of the cavern ceiling suddenly collapsed 2420 | -10/Subcaves | Shifting Twisted Machinery released Sub. Power Source 2425 | -10/Subcaves | Shifting Twisted Machinery released Sub. Beam Cannon 2605 | -10/Subcaves | Entered Materials 2605 | -8/Materials | Evolved 4 slots: Propulsion x2, Utility x2 2913 | -8/Materials | Build established: Scavenger-Mutant 3046 | -8/Materials | Lost 6 parts (1p3n1u1w) 3250 | -8/Materials | Core integrity fell below 50% 3256 | -8/Materials | Build established: Mutant 3272 | -8/Materials | Core integrity fell below 20% 3273 | -8/Materials | Destroyed by H-61 Shepherd with Heavy Assault Cannon Last Messages --------------- dispatching Specialist reinforcements to area. 03236_ Seismic Detector destroyed. 03236_ Critical hit (Blast). 03236_ Knocked back. 03236_ Slug penetrates Wall. 03241_ System corrupted: Matter fused (-9). 03241_ Deuterium Engine destroyed. 03242_ Slug penetrates Wall. 03245_ Rocket Launcher destroyed. 03245_ Shock Bomb Launcher destroyed. 03247_ Knocked back. 03248_ Acquired 5 matter. 03248_ Slug penetrates Wall. 03251_ Penetrated by Slug. 03253_ Knocked back. 03260_ Penetrated by Slug. 03269_ System corrupted: Substantial component data lost. 03269_ Knocked back. 03273_ Penetrated by Slug. Map ----- +----------------------------------------------------+ | ?????????????????????????????????????????????????? | | ?????????????????????????????????????????????????? | | ?????????????????????????????????????????????????? | | ?????????????????????????????????????????????????? | | ?????????????????????????????????????????????????? | | ?????????????????????????????????????????????????? | | ?????????????????????????????????????????????????? | | ?????????????????????????????????????????????????? | | ?????????????????????????????????????????????????? | | ?????????????????????????????????????????????????? | | ?????????????????????????????????????????????????? | | ?????????????????????????????????????????????????? | | ?????????????????????????????????????????????????? | | ?????????????????????????????????????????????????? | | ???????????????????? ????????????????????????????? | | ??????????????????? ????????????????????????????? | | ??????????????????? #????????????????????????????? | | ??????????????????? #????????????????????????????? | | ??????????????????? #????????????????????????????? | | ????????????????### #????????????????????????????? | | ???????????????? #????????????????????????????? | | ???????????????? #????????????????????????????? | | ????????????????# #????????????????????????????? | | ????????????????# #?################ ??????? | | ????????????????# #?#;% ??????? | | ????????????????# #??#%@ H ??????? | | ?????##########?# #??#% %m r ??????? | | ?????##########?# #??# %#### # ??????? | | ?????## #### #??# ut#????? #???????????? | | ????### """ % #??# #???????//#???????????? | | ????### Y" ###! #??# a #?????????#???????????? | | ????## ! "" #?# #??# h#?????????????????????? | | ####### #?# #??# #?????????????????????? | | ####### % ### ##?# #?????????????????????? | | ###+####### #### #?????????????????????? | | # % % a #?????????????????????? | | # " #?????????????????????? | | # #?????????????????????? | | # #################### #?????????????????????? | | ## ##################### #?????????????????????? | | ## # ##?????????# #?????????????????????? | | ## # T ##?????????# #?????????????????????? | | ## + ##?????????# #?????????????????????? | | ## # ##?????????# #?????????????????????? | | ## # ##?????????# #?????????????????????? | | ## # """ ##?????????# #?????????????????????? | | # """ ##?????????# #?????????????????????? | | # """ ##?????????# #####?????????????????? | | # ##?????????# #?????????????????? | | ## #####+######?????????# #??????????? | +----------------------------------------------------+ Best States ------------- Heat Dissipation 45 Energy Generation 15 Energy Capacity 275 Matter Stores 300 Matter Capacity 300 Sight Range 16 Robot Scan Range 14 Terrain Scan Density 10 Armor Coverage 150 Evasion (%) 40 Recoil Reduction 2 Item Schematics ----------------- None Robot Schematics ------------------ None Fabricated ------------ Nothing Repaired ---------- Seismic Detector | 40% | -10/Materials Alien Tech Used ----------------- None Achievements -------------- None Challenges ------------ None Game ------ Seed CoolantHardlightMace Manual? 0 Play Time 00:40:36 Cumulative 84.2 hours Start 2025.07.14 @ 21:59:19 End 2025.07.15 @ 01:04:44 Sessions 2 Manual Loads 0 Difficulty Rogue Special Mode None Game No. 88 Rogue 88 Adventurer 0 Explorer 0 Win Type - Total 0 Types 0/0/0/0/0/0/0/0/0/0 Lore% 48 Gallery% 40 Achievement% 30 Wizard Run 0 Options --------- Layout 1 ASCII 0 Keyboard 0 Movement Mouse Keybinds 0 Fullscreen 2 Font 48/Smallcaps Map View 50x35 Zoom Use 0% Tactical HUD 1 Map Filters NONE Filters NONE Steam 0 RUN: 63279a0d-1874-4bc5-b8cb-4b1f8c4986b5